Cogmind - Beta 16 @@@ ROGUE MODE // 2025.12.21 @ 06:44:43 Player: Oneirical Result: Destroyed by P-70 Sage with High-powered Shock Rifle Performance ------------- Evolutions (4) 2000 Regions Visited (11) 2200 Robots Destroyed (72) 360 Value Destroyed (3021) 3021 Prototype IDs (16) 320 Alien Tech Used (0) 0 Bonus (457) 457 TOTAL SCORE: 8358 Bonus ------- Follower Combat Kills 157 Met Data Miner 300 Cogmind --------- Core Integrity 0/850 Matter 247/300 Energy 98/100 System Corruption 35% Temperature Cool (0) Movement Core (50) Location -5/Proximity Caves Parts ------- > --- POWER (2) -------- (None) > --- PROPULSION (4) --- (None) > --- UTILITY (6) ------ (None) > --- WEAPON (3) ------- (None) > --- INVENTORY (5) ---- Makeshift Heavy Armor Plating Improved Plasma Cutter Multitool Peak State ------------ > --- POWER ------------ Fission Core Neutrino Core > --- PROPULSION ------- Armored Treads Advanced Treads Improved Medium Treads Carbon-fiber Leg > --- UTILITY ---------- Improved Cryofiber Web Advanced Heat Sink Improved Sensor Array Advanced Signal Interpreter Core Analyzer Improved Medium Armor Plating > --- WEAPON ----------- High-powered Shock Rifle Proton Cannon Proton Cannon > --- INVENTORY -------- Transmission Jammer Heavy Laser Heavy Rocket Launcher Improved Plasma Cutter Multitool [Rating: 68] Favorites ----------- Power Fission Core Engine Ion Engine Power Core Fission Core Propulsion Improved Medium Treads Treads Improved Medium Treads Leg Carbon-fiber Leg Wheel Compact Wheel Hover Unit Backup Propulsion I Flight Unit Flight Unit Utility Improved Sensor Array Device Improved Sensor Array Storage Large Storage Unit Processor Advanced Signal Interpreter Hackware Makeshift System Shield Protection Improved Medium Armor Plating Weapon Proton Cannon Energy Gun High-powered Shock Rifle Energy Cannon Proton Cannon Ballistic Gun Assault Rifle Ballistic Cannon Battle Cannon Launcher Heavy Rocket Launcher Special Weapon Multitool Impact Weapon Heavy Mace Slashing Weapon Axe Build | -11 -10 -10 -10 -8 -7 -7 -6 -6 -6 -6 -5 ------- Run | Yrd Mat Min Sub Mat Fac Sto Fac Low Low Dat Pro Slots Evolved 8 | . . . . 4 2 . 2 . . . . Power 1 | . . . . . . . 1 . . . . Propulsion 2 | . . . . 1 1 . . . . . . Utility 4 | . . . . 2 1 . 1 . . . . Weapon 1 | . . . . 1 . . . . . . . Parts Attached 93 | 7 1 3 10 15 6 22 21 1 5 . 2 Power 16 | 1 . . 1 3 2 3 4 1 1 . . Engine 9 | 1 . . 1 2 2 1 2 . . . . Core 7 | . . . . 1 . 2 2 1 1 . . Reactor . | . . . . . . . . . . . . Propulsion 21 | 2 . 2 2 4 1 5 3 . 2 . . Treads 8 | . . . . . . 4 2 . 2 . . Leg 1 | . . . . . . . 1 . . . . Wheel 5 | 2 . . 2 . . 1 . . . . . Hover . | . . . . . . . . . . . . Flight 7 | . . 2 . 4 1 . . . . . . Utility 25 | 2 1 . 3 3 3 3 8 . 1 . 1 Device 12 | 1 . . 1 1 2 2 4 . 1 . . Storage 2 | 1 1 . . . . . . . . . . Processor 5 | . . . 1 2 . . 2 . . . . Hackware 2 | . . . 1 . 1 . . . . . . Protection 4 | . . . . . . 1 2 . . . 1 Artifact . | . . . . . . . . . . . . Weapon 31 | 2 . 1 4 5 . 11 6 . 1 . 1 Energy Gun 14 | 1 . . 2 1 . 5 4 . . . 1 Energy Cannon 4 | . . . . 1 . 1 1 . 1 . . Ballistic Gun 4 | 1 . 1 1 . . 1 . . . . . Ballistic Cannon 4 | . . . . 1 . 3 . . . . . Launcher 2 | . . . 1 . . . 1 . . . . Special Weapon 1 | . . . . 1 . . . . . . . Impact Weapon 1 | . . . . 1 . . . . . . . Slashing Weapon 1 | . . . . . . 1 . . . . . Piercing Weapon . | . . . . . . . . . . . . Special Melee Weapon . | . . . . . . . . . . . . Unidentified Prototypes 5 | . . . . . . 5 . . . . . Corrupted Parts 3 | . . . . . . . . . 3 . . System Corruption 25 | . . . . . . . . . 25 . . Parts Lost 48 | . 1 2 4 6 . 11 10 1 . . 13 Power 9 | . . 1 . 1 . 2 3 . . . 2 Propulsion 16 | . . 1 3 2 . 3 2 1 . . 4 Utility 10 | . . . . 2 . 3 2 . . . 3 Weapon 13 | . 1 . 1 1 . 3 3 . . . 4 Highest Loss Streak 10 | . 1 3 2 5 . 10 4 1 . . 8 To Critical Strikes 1 | . . . . . . . . . . . 1 Average Backups 5 | . 5 9 6 5 4 4 4 5 4 4 3 Power . | . . 1 . . . . . . . . . Propulsion . | . . 1 . . . . . . . . . Utility 1 | . 3 5 3 . . 1 1 1 . 1 . Weapon 2 | . . 1 2 1 2 1 2 2 1 1 . Tool/Special . | . . . . . . . . . . . . Unused Backups 17 | . . . 7 3 . 2 2 2 . . 1 Power . | . . . . . . . . . . . . Propulsion 3 | . . . 1 1 . 1 . . . . . Utility 6 | . . . 4 1 . . 1 . . . . Weapon 7 | . . . 2 1 . 1 1 2 . . . Tool/Special 1 | . . . . . . . . . . . 1 Average Slot Usage (%) 86 | . 99 83 79 82 66 82 90 94 96 86 57 Engine 4 | . 14 . 10 3 6 4 4 2 . . . Core 5 | . . . . 5 . 1 5 10 13 13 4 Treads 10 | . . . . . . 15 15 14 19 26 14 Leg 1 | . . . . . . . 3 6 2 . . Wheel 5 | . 27 14 8 8 . 2 1 . . . . Flight 2 | . . 12 9 2 16 3 . . . . . Device 15 | . 14 14 4 8 9 18 24 20 20 26 17 Storage 3 | . 14 14 5 8 . . . . . . . Processor 9 | . . . 11 9 15 8 8 13 13 13 9 Hackware 1 | . . . 4 8 7 1 . . . . . Protection 2 | . . . . . . 2 4 6 5 . . Energy Gun 11 | . 14 14 17 8 9 7 13 13 6 . 2 Energy Cannon 4 | . . . . 5 . 3 4 6 9 3 4 Ballistic Gun 2 | . 13 13 4 2 . . . . . . . Ballistic Cannon 1 | . . . . 6 . 5 . . . . . Peak Build Rating 68 | 7 8 7 13 32 32 52 67 66 68 67 67 Average Rating 39 | 5 7 6 9 22 23 41 59 64 65 56 38 On Entrance 32 | . 7 7 7 12 13 29 50 66 64 67 67 Avg Prop Armor Cover (%) 4 | . . 5 4 3 . 12 5 3 3 . . Naked Turns 126 | . . . . . . . . . . . 126 Heaviest Build 57 | 15 30 28 32 26 15 37 46 51 57 51 51 Greatest Support 104 | 32 32 32 20 10 12 104 80 80 92 92 92 Greatest Overweight (x) 9 | . 4 5 9 7 2 5 1 . 1 . 1 Average Overweight (x) . | . . 1 1 . . . . . . . . Largest Inventory Capacity 15 | 8 15 15 15 8 5 5 5 5 5 5 5 Average Capacity 6 | 7 11 15 9 7 5 5 5 5 5 5 5 Most Carried 15 | 1 8 14 15 8 5 5 5 5 5 5 5 Average Carried 5 | . 5 10 8 6 4 4 4 4 4 5 4 Final Capacity 15 | 8 15 15 5 5 5 5 5 5 5 5 5 Final Carried 14 | 1 8 14 5 4 5 5 5 5 5 5 4 Class Distribution -------------------- 44% | Skirmisher 40% | Mutant 5% | Gunner 3% | Tank 3% | Sprinter Dominant Class ---------------- Mutant | -10/Materials Mutant | -10/Mines Mutant | -10/Subcaves Skirmisher | -8/Materials Sprinter | -7/Factory Mutant | -7/Storage Skirmisher | -6/Factory Skirmisher | -6/Lower Caves Skirmisher | -6/Lower Caves Mutant | -6/Data Miner Mutant | -5/Proximity Caves Resources | -11 -10 -10 -10 -8 -7 -7 -6 -6 -6 -6 -5 ----------- Run | Yrd Mat Min Sub Mat Fac Sto Fac Low Low Dat Pro Matter Collected 2337 | 266 95 62 230 247 . 575 258 243 270 . 91 Remotely . | . . . . . . . . . . . . Salvage Created 3361 | 195 95 29 321 297 . 712 584 606 369 . 153 Parts 162 | 17 8 6 18 16 . 33 27 16 9 . 12 Haulers Intercepted . | . . . . . . . . . . . . Recyclers Shooed 4 | 1 . . . . . 2 1 . . . . Parts Field Recycled . | . . . . . . . . . . . . Retrieved Matter . | . . . . . . . . . . . . Parts Self-Destructed 35 | . . . 8 . . . . 7 9 . 11 Prevented 13 | . . . . . . . . 8 3 . 2 Parts Restored . | . . . . . . . . . . . . Kills | -11 -10 -10 -10 -8 -7 -7 -6 -6 -6 -6 -5 ------- Run | Yrd Mat Min Sub Mat Fac Sto Fac Low Low Dat Pro Combat Hostiles Destroyed 64 | . 4 2 5 6 . 13 12 6 9 . 7 Melee 1 | . . . . . . 1 . . . . . Guns 28 | . 4 2 4 4 . 5 8 . . . 1 Cannons 14 | . . . . 2 . 6 . 3 2 . 1 AOE 15 | . . . . . . . 3 2 5 . 5 Classes Destroyed 14 | 2 2 . 4 . . 1 2 2 1 . . Worker 1 | . . . . . . . 1 . . . . Tunneler 5 | 5 . . . . . . . . . . . Recycler 2 | 1 . . . . . 1 . . . . . Swarmer 15 | . 3 2 1 . . 2 2 . . . 5 Grunt 21 | . 1 . . 3 . 3 4 3 7 . . Brawler 1 | . . . . . . . . . 1 . . Duelist 1 | . . . . . . . . 1 . . . Sentry 13 | . . . 1 3 . 7 2 . . . . Hunter 5 | . . . . . . . 2 1 . . 2 Programmer 3 | . . . . . . 1 2 . . . . Artisan 2 | . . . 2 . . . . . . . . Cobbler 1 | . . . 1 . . . . . . . . Subdweller 3 | . . . 3 . . . . . . . . Mutant 2 | . . . . . . . . 1 1 . . Best Kill Streak 5 | 5 3 2 2 3 . 5 3 3 4 . 5 Combat Bots Only 5 | . 3 2 2 3 . 4 3 3 4 . 5 Max Kills in Single Turn 4 | 1 1 1 1 1 . 1 1 2 1 . 4 Gunslinging . | . . . . . . . . . . . . Exploded 3 | . . . . . . . 1 2 1 . 3 Melee 1 | . . . . . . 1 . . . . . Uniques/NPCs Destroyed . | . . . . . . . . . . . . Combat | -11 -10 -10 -10 -8 -7 -7 -6 -6 -6 -6 -5 -------- Run | Yrd Mat Min Sub Mat Fac Sto Fac Low Low Dat Pro Hostile Shots Fired 769 | . 44 11 24 60 . 274 141 22 40 . 153 Missed 271 | . 14 3 4 23 . 100 52 5 17 . 53 Hits 498 | . 30 8 20 37 . 174 89 17 23 . 100 Melee 12 | . . . . 12 . . . . . . . Projectile 486 | . 30 8 20 25 . 174 89 17 23 . 100 AOE 5 | . . . . 3 . . 2 . . . . Critical Strikes 16 | . . . 1 3 . 2 2 1 2 . 5 Damage Taken 6912 | . 349 62 418 639 . 1515 1197 230 455 . 2047 Core 1598 | . 86 7 133 163 . 343 75 10 18 . 763 Absorbed by Shields . | . . . . . . . . . . . . Core Remaining (%) 57 | 100 . . 9 70 . 51 . . . . . Volleys Fired 223 | 11 14 5 48 18 . 41 45 16 13 . 12 Largest 3 | 2 2 2 2 3 . 3 3 3 3 . 3 Hottest 210 | 70 70 70 110 121 . 179 210 204 210 . 189 Shots Fired 490 | 22 29 8 84 42 . 89 109 46 39 . 22 Gun 353 | 22 29 8 82 35 . 45 84 31 9 . 8 Cannon 112 | . . . . 7 . 44 17 15 20 . 9 Launcher 25 | . . . 2 . . . 8 . 10 . 5 Special . | . . . . . . . . . . . . Kinetic 114 | 11 14 3 23 24 . 39 . . . . . Thermal 207 | 11 15 5 47 18 . 21 67 15 . . 8 Explosive 25 | . . . 2 . . . 8 . 10 . 5 Electromagnetic 144 | . . . 12 . . 29 34 31 29 . 9 Robot Hit Streak 15 | 4 9 1 12 9 . 15 12 13 8 . 4 Robot Miss Streak 4 | 2 2 2 3 2 . 2 3 2 3 . 4 Penetration Max . | . . . . . . . . . . . . Secondary Targets . | . . . . . . . . . . . . Shots Hit Robots 305 | 14 19 3 45 27 . 68 70 32 19 . 8 Core Hits 156 | 7 7 3 13 12 . 36 29 15 23 . 11 Critical Kills . | . . . . . . . . . . . . Critical Parts Destroyed . | . . . . . . . . . . . . Critical Strikes 17 | . 2 . 3 . . 3 9 . . . . Burn 13 | . 2 . 3 . . . 8 . . . . Blast 2 | . . . . . . 2 . . . . . Corrupt 1 | . . . . . . . 1 . . . . Sever 1 | . . . . . . 1 . . . . . Melee Attacks 14 | . . . . 2 . 12 . . . . . Impact 2 | . . . . 2 . . . . . . . Slashing 12 | . . . . . . 12 . . . . . Piercing . | . . . . . . . . . . . . Sneak Attacks . | . . . . . . . . . . . . Combat Hostiles . | . . . . . . . . . . . . Follow-up Attacks . | . . . . . . . . . . . . Damage Inflicted 7998 | 175 248 30 748 598 . 1579 1490 903 1490 . 737 Guns 3826 | 175 248 30 748 387 . 530 1011 489 92 . 116 Cannons 1811 | . . . . 102 . 820 120 309 340 . 120 Explosions 2023 | . . . . . . . 359 105 1058 . 501 Melee 338 | . . . . 109 . 229 . . . . . Ramming . | . . . . . . . . . . . . Kinetic 1334 | 87 134 6 187 260 . 660 . . . . . Thermal 2577 | 88 114 24 456 229 . 281 930 339 . . 116 Explosive 1848 | . . . . . . . 289 . 1058 . 501 Electromagnetic 1901 | . . . 105 . . 409 271 564 432 . 120 Impact 109 | . . . . 109 . . . . . . . Slashing 229 | . . . . . . 229 . . . . . Piercing . | . . . . . . . . . . . . Highest Corruption 35 | . 1 1 1 2 . . 6 6 32 32 35 Average Corruption 9 | . 1 1 1 2 . . 2 6 19 32 32 Corruption Purged . | . . . . . . . . . . . . Corruption Blocked . | . . . . . . . . . . . . Effects 157 | . 3 2 4 . . . 14 46 45 7 36 Message Errors 41 | . 2 . . . . . 4 11 14 1 9 Matter Fused 29 | . . 1 2 . . . 3 9 9 1 4 Heat Flow Errors 20 | . . . . . . . 2 6 6 2 4 Energy Discharges 22 | . . . . . . . 1 9 4 2 6 Parts Rejected 3 | . . . . . . . 1 1 . . 1 Data Loss (minor) 19 | . . . 2 . . . 1 4 7 1 4 Data Loss (major) 6 | . . . . . . . . 4 2 . . Misfires 6 | . 1 . . . . . . 2 2 . 1 Alerts 4 | . . 1 . . . . 1 . 1 . 1 Misdirections 6 | . . . . . . . . . . . 6 Weapon Failures 1 | . . . . . . . 1 . . . . Overload Shots . | . . . . . . . . . . . . Overflow Damage 118 | . . . . 35 . 5 29 . 39 . 10 Projectiles 54 | . . . . . . 5 29 . 20 . . Explosions 29 | . . . . . . . . . 19 . 10 Melee 35 | . . . . 35 . . . . . . . Knockbacks 2 | . . . . 2 . . . . . . . Impact 2 | . . . . 2 . . . . . . . Kinetic . | . . . . . . . . . . . . Secondary . | . . . . . . . . . . . . Self-Inflicted Damage 94 | . . . . . . . . . 39 . 55 Shots 3 | . . . . . . . . . 1 . 2 Rammed . | . . . . . . . . . . . . Targets Rammed . | . . . . . . . . . . . . Kicked . | . . . . . . . . . . . . Crushed . | . . . . . . . . . . . . Highest Temperature 375 | 45 39 20 28 317 . 375 166 234 84 29 258 Average Temperature 67 | 16 15 13 8 98 . 108 37 155 31 29 101 Received Heat Transfer 1497 | . 51 . 132 99 . 492 162 74 219 . 268 Effects 3 | . . . . 1 . 1 . 1 . . . Energy Bleed 3 | . . . . 1 . 1 . 1 . . . Siege Activations . | . . . . . . . . . . . . Martial Activations . | . . . . . . . . . . . . Shielding Activations . | . . . . . . . . . . . . Robots Disrupted . | . . . . . . . . . . . . Combat Hostiles . | . . . . . . . . . . . . Robots Corrupted 5 | . . . 1 . . 1 . 1 2 . . Combat Hostiles 5 | . . . 1 . . 1 . 1 2 . . Parts Fried 19 | . . . 1 . . 3 . 9 6 . . Impact Corruptions 1 | . . . . 1 . . . . . . . Robots Melted 1 | . . . . . . . 1 . . . . Combat Hostiles 1 | . . . . . . . 1 . . . . Parts Melted 15 | 1 1 . 1 . . . 12 . . . . Heat Transferred 5957 | 259 481 74 882 275 . 564 2693 544 . . 185 Parts Sabotaged . | . . . . . . . . . . . . Parts Stolen . | . . . . . . . . . . . . Parts Stripped . | . . . . . . . . . . . . Power Chain Reactions 2 | . . . . . . . 1 1 . . . Alert | -11 -10 -10 -10 -8 -7 -7 -6 -6 -6 -6 -5 ------- Run | Yrd Mat Min Sub Mat Fac Sto Fac Low Low Dat Pro Maximum Alert Level . | . . . . . . . . . . . . Low Security (%) 100 | 100 100 100 . 100 100 100 100 . . . . Level 1 . | . . . . . . . . . . . . Level 2 . | . . . . . . . . . . . . Level 3 . | . . . . . . . . . . . . Level 4 . | . . . . . . . . . . . . Level 5 . | . . . . . . . . . . . . High Security . | . . . . . . . . . . . . Max Security . | . . . . . . . . . . . . Peak Influence 199 | 10 75 30 . 98 12 144 199 . . . . Initial 56 | . . . . . 7 . 56 . . . . Average 38 | 1 17 3 . 11 2 47 76 . . . . Influence Increases 2088 | 30 154 50 40 264 5 501 519 130 180 . 215 Destroy 0b10 Robot/C 1200 | . 80 40 40 120 . 260 240 100 160 . 160 Destroy 0b10 Robot/NC 50 | 30 . . . . . 5 5 10 . . . Destroy Leader 300 | . 20 10 . 40 . 90 80 20 20 . 20 Allied During Kill 5 | . . . . . . . . . . . 5 Trap Triggered on 0b10 10 | . 10 . . . . . . . . . . Successful Hack 63 | . 13 . . 11 5 6 28 . . . . Disable Machine 180 | . . . . 15 . 75 90 . . . . Destroy Structure 85 | . 1 . . 3 . 5 76 . . . . Partial Spotted 60 | . 15 . . 30 . 15 . . . . . Lose Combat Pursuer 135 | . 15 . . 45 . 45 . . . . 30 Influence Decreases 2088 | 30 154 50 40 248 21 375 609 166 156 24 215 Entered New Map 117 | . . . . . 9 . 70 14 . 24 . Time Decay 1532 | 30 153 30 40 120 12 265 459 152 156 . 115 Lost Part 341 | . 1 20 . 50 . 110 80 . . . 80 Lost Ally 20 | . . . . . . . . . . . 20 Purge Threat 78 | . . . . 78 . . . . . . . Squads Dispatched 13 | . 2 . . 2 . 3 6 . . . . Investigation 3 | . 1 . . 1 . . 1 . . . . Extermination 3 | . . . . . . 1 2 . . . . Reinforcement 5 | . 1 . . 1 . 2 1 . . . . Assault . | . . . . . . . . . . . . Garrison 2 | . . . . . . . 2 . . . . Intercept . | . . . . . . . . . . . . Searches Triggered . | . . . . . . . . . . . . Construction Impeded 1 | . . . . . . . 1 . . . . Haulers Reinforced . | . . . . . . . . . . . . Active Scanning Responses . | . . . . . . . . . . . . Cargo Convoy Interrupts . | . . . . . . . . . . . . Stealth | -11 -10 -10 -10 -8 -7 -7 -6 -6 -6 -6 -5 --------- Run | Yrd Mat Min Sub Mat Fac Sto Fac Low Low Dat Pro Distress Signals 3 | . 1 . . . . 2 . . . . . Communications Jammed . | . . . . . . . . . . . . Distress Signals . | . . . . . . . . . . . . Times Spotted 118 | . 19 3 10 21 . 19 16 6 9 . 15 Peak Tracking Total 13 | . 10 3 2 13 . 6 2 3 4 . 5 Tactical Retreats 8 | . 1 . 1 2 . 2 . . . . 2 Traps | -11 -10 -10 -10 -8 -7 -7 -6 -6 -6 -6 -5 ------- Run | Yrd Mat Min Sub Mat Fac Sto Fac Low Low Dat Pro Traps Triggered 9 | . 3 . 1 . 1 1 3 . . . . Indirectly . | . . . . . . . . . . . . Trap Hack Attempts . | . . . . . . . . . . . . Triggered . | . . . . . . . . . . . . Disarmed . | . . . . . . . . . . . . Reprogrammed 6 | . 6 . . . . . . . . . . Reused 1 | . 1 . . . . . . . . . . Traps Extracted . | . . . . . . . . . . . . Installed . | . . . . . . . . . . . . Triggered 1 | . 1 . . . . . . . . . . Most Traps Carried 3 | . . 3 3 1 . . . . . . . Machines | -11 -10 -10 -10 -8 -7 -7 -6 -6 -6 -6 -5 ---------- Run | Yrd Mat Min Sub Mat Fac Sto Fac Low Low Dat Pro Machines Disabled 14 | . . . . 1 . 5 6 1 1 . . Max in Single Turn 2 | . . . . 1 . 1 2 1 1 . . Garrison Access 2 | . . . . . 1 . 1 . . . . Machines Repaired . | . . . . . . . . . . . . Machines Dismantled . | . . . . . . . . . . . . Machines Sabotaged . | . . . . . . . . . . . . Overloaded Fab Kills . | . . . . . . . . . . . . Hacking | -11 -10 -10 -10 -8 -7 -7 -6 -6 -6 -6 -5 --------- Run | Yrd Mat Min Sub Mat Fac Sto Fac Low Low Dat Pro Machines Accessed 29 | . 4 . . 6 3 5 4 2 1 4 . Terminals 15 | . 4 . . 3 . 5 2 1 . . . Fabricators 2 | . . . . . 1 . 1 . . . . Repair Stations 3 | . . . . 2 1 . . . . . . Recycling Units 1 | . . . . 1 . . . . . . . Scanalyzers . | . . . . . . . . . . . . Garrison Access 2 | . . . . . 1 . 1 . . . . Total Hacks 77 | . 18 . . 19 4 7 5 2 1 21 . Successful 47 | . 7 . . 6 3 3 4 2 1 21 . Failed 30 | . 11 . . 13 1 4 1 . . . . Catastrophic 4 | . 2 . . 2 . . . . . . . Database Lockouts . | . . . . . . . . . . . . Manual 16 | . 5 . . 7 . 1 3 . . . . Terminals 41 | . 18 . . 12 . 7 3 1 . . . Fabricators 2 | . . . . . 1 . 1 . . . . Repair Stations 6 | . . . . 4 2 . . . . . . Recycling Units 3 | . . . . 3 . . . . . . . Scanalyzers . | . . . . . . . . . . . . Garrison Access 2 | . . . . . 1 . 1 . . . . Terminal Hacks 37 | . 7 . . 3 . 3 . 2 1 21 . Record 3 | . . . . . . . . 1 . 2 . Part Schematic 13 | . . . . . . . . . . 13 . Robot Schematic 3 | . . . . . . . . . . 3 . Prototype ID Bank 4 | . 1 . . . . . . . . 3 . Open Door 5 | . . . . . . 3 . 1 1 . . Unreport Threat 1 | . . . . 1 . . . . . . . Locate Traps 3 | . 3 . . . . . . . . . . Reprogram Traps 1 | . 1 . . . . . . . . . . Investigation Status 1 | . 1 . . . . . . . . . . Zone Layout 3 | . 1 . . 2 . . . . . . . Fabricator Hacks 2 | . . . . . 1 . 1 . . . . Network Status 2 | . . . . . 1 . 1 . . . . Repair Station Hacks 3 | . . . . 2 1 . . . . . . Scan Component 1 | . . . . 1 . . . . . . . Refit 2 | . . . . 1 1 . . . . . . Recycling Unit Hacks 1 | . . . . 1 . . . . . . . Retrieve Components 1 | . . . . 1 . . . . . . . Scanalyzer . | . . . . . . . . . . . . Garrison Access Hacks 2 | . . . . . 1 . 1 . . . . Seal Access 2 | . . . . . 1 . 1 . . . . Unauthorized Hacks 2 | . . . . . . . 2 . . . . Terminals 2 | . . . . . . . 2 . . . . Assimilate 2 | . . . . . . . 2 . . . . Fabricators . | . . . . . . . . . . . . Repair Stations . | . . . . . . . . . . . . Recycling Units . | . . . . . . . . . . . . Scanalyzers . | . . . . . . . . . . . . Garrison Access . | . . . . . . . . . . . . Data Cores Recovered . | . . . . . . . . . . . . Used . | . . . . . . . . . . . . Hacking Detections 14 | . 3 . . 5 1 4 1 . . . . Full Trace Events 2 | . . . . 1 . . 1 . . . . Feedback Events . | . . . . . . . . . . . . Feedback Blocked . | . . . . . . . . . . . . Robot Schematics Acquired 3 | . . . . . . . . . . 3 . Robots Built . | . . . . . . . . . . . . Authchips . | . . . . . . . . . . . . Time . | . . . . . . . . . . . . Total Robot Build Rating . | . . . . . . . . . . . . Part Schematics Acquired 13 | . . . . . . . . . . 13 . Parts Built . | . . . . . . . . . . . . Authchips . | . . . . . . . . . . . . Time . | . . . . . . . . . . . . Total Part Build Rating . | . . . . . . . . . . . . Part Studies Acquired . | . . . . . . . . . . . . Parts Repaired . | . . . . . . . . . . . . Time . | . . . . . . . . . . . . Parts Recycled . | . . . . . . . . . . . . Recycled Matter . | . . . . . . . . . . . . Retrieved Matter . | . . . . . . . . . . . . Retrieved Components . | . . . . . . . . . . . . Parts Scanalyzed . | . . . . . . . . . . . . Part Schematics Acquired . | . . . . . . . . . . . . Parts Damaged . | . . . . . . . . . . . . Bothacking | -11 -10 -10 -10 -8 -7 -7 -6 -6 -6 -6 -5 ------------ Run | Yrd Mat Min Sub Mat Fac Sto Fac Low Low Dat Pro Used RIF Installer . | . . . . . . . . . . . . Robots Hacked . | . . . . . . . . . . . . Non-combat . | . . . . . . . . . . . . Combat . | . . . . . . . . . . . . Robot Hacks Applied . | . . . . . . . . . . . . Relay Couplers Released . | . . . . . . . . . . . . Fabnet Peak Effective % . | . . . . . . . . . . . . Robots Rewired . | . . . . . . . . . . . . Allies Hacked 1 | . . . . . . . 1 . . . . Hacks Repelled . | . . . . . . . . . . . . Allies | -11 -10 -10 -10 -8 -7 -7 -6 -6 -6 -6 -5 -------- Run | Yrd Mat Min Sub Mat Fac Sto Fac Low Low Dat Pro Total Allies 5 | . . 3 . . . . 1 . . . 1 Largest Group 3 | . . 3 3 . . . 1 . . . 1 Highest-Rated Group 96 | . . 40 40 . . . 26 . . . 96 Highest-Rated Ally 96 | . . 16 16 . . . 26 . . . 96 Total Orders . | . . . . . . . . . . . . Ally Attacks 40 | . . . 39 . . . . . . . 1 Total Damage 548 | . . . 501 . . . . . . . 47 Kills 5 | . . . 4 . . . . . . . 1 Allies Corrupted . | . . . . . . . . . . . . Allies Melted 1 | . . . . . . . . . . . 1 Intel | -11 -10 -10 -10 -8 -7 -7 -6 -6 -6 -6 -5 ------- Run | Yrd Mat Min Sub Mat Fac Sto Fac Low Low Dat Pro Active Infowar (turns) 5643 | 49 549 265 511 731 3 29 441 1428 1069 134 434 Optics 272 | . . . 272 . . . . . . . . Sensors 4237 | . . . . 731 . . 441 1428 1069 134 434 Seismic 1102 | 49 549 265 239 . . . . . . . . Jamming 360 | . . . . . . . . . 22 134 204 ECM 32 | . . . . . 3 29 . . . . . Robot Analysis Total . | . . . . . . . . . . . . Derelict Logs Recovered 5 | . . . 1 . . . . 1 3 . . Drone Launches . | . . . . . . . . . . . . Drone Recoveries . | . . . . . . . . . . . . Exploration | -11 -10 -10 -10 -8 -7 -7 -6 -6 -6 -6 -5 ------------- Run | Yrd Mat Min Sub Mat Fac Sto Fac Low Low Dat Pro Turns Passed 8447 | 129 549 265 1485 800 117 727 1184 1428 1069 134 560 Spaces Moved 5346 | 87 457 201 899 375 268 399 647 860 585 80 488 Core 265 | 3 1 . 7 . . 2 . . . . 252 Treads 2400 | . . . . . . 137 502 860 585 80 236 Legs . | . . . . . . . . . . . . Wheels 1818 | 84 456 199 601 173 . 160 145 . . . . Hover . | . . . . . . . . . . . . Flight 863 | . . 2 291 202 268 100 . . . . . Fastest Speed 29 | 50 100 100 80 29 30 30 115 152 152 161 50 Average Speed 127 | 98 100 116 140 66 32 115 154 152 173 161 108 Slowest Speed 500 | 100 250 440 500 320 112 300 240 155 232 161 250 Overloaded Moves . | . . . . . . . . . . . . Propulsion Burnouts . | . . . . . . . . . . . . Robots Hopped 15 | . . . . 12 . 3 . . . . . Potential Cave-ins . | . . . . . . . . . . . . Cave-ins Triggered . | . . . . . . . . . . . . Exploration Rate (%) 47 | 4 63 45 53 40 7 48 21 85 68 68 62 Regions Visited 11 Branch Regions 7 Pre-discovered Areas 3 | . . . . . . . . . 2 1 . Known Exits Taken 8 | . . . 1 1 1 1 1 1 1 1 . Unknown Exits Taken 3 | 1 1 1 . . . . . . . . . Scrap Searched 3 | . . . . . . . . 1 2 . . Spaces Dug 9 | . . . . . . . . . 9 . . Terrain Destroyed 243 | . . . 20 1 . 4 78 9 83 . 48 Melee . | . . . . . . . . . . . . Projectile 5 | . . . . 1 . 4 . . . . . AOE 238 | . . . 20 . . . 78 9 83 . 48 Terrain Rammed . | . . . . . . . . . . . . Walls Destroyed . | . . . . . . . . . . . . Machines Disabled . | . . . . . . . . . . . . Actions | -11 -10 -10 -10 -8 -7 -7 -6 -6 -6 -6 -5 --------- Run | Yrd Mat Min Sub Mat Fac Sto Fac Low Low Dat Pro Total 6506 | 105 517 222 1042 871 296 564 748 940 612 85 504 Wait 709 | . 37 5 70 450 . 76 12 59 . . . Move 5306 | 86 456 200 898 351 267 392 646 859 584 79 488 Hop 14 | . . . . 11 . 3 . . . . . Pick Up 44 | 1 6 6 7 7 2 5 5 2 2 . 1 Fast Attach 60 | 7 3 2 3 6 3 13 17 1 1 3 1 Attach 17 | . . 1 3 4 1 2 3 . 1 . 2 Detach 5 | . . 1 1 1 1 . 1 . . . . Swap 55 | . 1 2 5 10 4 14 12 1 6 . . Drop 40 | . . . 7 10 3 5 5 2 5 3 . Fire 223 | 11 14 5 48 18 . 41 45 16 13 . 12 Melee 14 | . . . . 2 . 12 . . . . . Ram . | . . . . . . . . . . . . Kick . | . . . . . . . . . . . . Crush . | . . . . . . . . . . . . Escape Stasis 15 | . . . . . 15 . . . . . . Rewire . | . . . . . . . . . . . . Trap . | . . . . . . . . . . . . Miscellaneous 4 | . . . . 1 . 1 2 . . . . Route ------- -11/Scrapyard -10/Materials (discovered 2 exits: [*Mat] / [*Min]) -10/Mines -10/Subcaves -8/Materials -7/Factory -7/Storage -6/Factory -6/Lower Caves -6/Lower Caves -6/Data Miner -5/Proximity Caves History --------- Turn | Location | Event 11 | -11/Scrapyard | Discovered new exit (range 15) 130 | -11/Scrapyard | Entered Materials 263 | -10/Materials | Discovered new exit (range 5) 302 | -10/Materials | Build established: Mutant 672 | -10/Materials | Discovered new exit (range 8) 679 | -10/Materials | Entered Mines 719 | -10/Mines | Lost 3 parts (1p1n1w) 841 | -10/Mines | Received a Rocket Launcher from a helpful Derelict 889 | -10/Mines | Found a hidden stash of uninstalled traps 913 | -10/Mines | Discovered new exit (range 7) 922 | -10/Mines | Assisted by bots powering up and referring to "LRC-V3" 944 | -10/Mines | Entered Subcaves 944 | -10/Subcaves | Accompanied by 3 allies 1149 | -10/Subcaves | Shifting Twisted Machinery released Riot Gun 1172 | -10/Subcaves | Shifting Twisted Machinery released Sub. Machine Gun 1180 | -10/Subcaves | Discovered new exit (range 3) 1184 | -10/Subcaves | Identified exit to Materials 1348 | -10/Subcaves | Core integrity fell below 50% 1452 | -10/Subcaves | Shifting Twisted Machinery released Mak. Light Armor Plating 1458 | -10/Subcaves | Shifting Twisted Machinery released Flamer 2048 | -10/Subcaves | Shifting Twisted Machinery released Barrage Gun 2328 | -10/Subcaves | Shifting Twisted Machinery released Spk. Treads 2347 | -10/Subcaves | Core integrity fell below 20% 2429 | -10/Subcaves | Entered Materials 2429 | -8/Materials | Evolved 4 slots: Propulsion x1, Utility x2, Weapon x1 2929 | -8/Materials | Build established: Skirmisher 3225 | -8/Materials | Discovered new exit (range 13) 3229 | -8/Materials | Identified exit to Factory 3229 | -8/Materials | Entered Factory 3229 | -7/Factory | Evolved 2 slots: Propulsion x1, Utility x1 3230 | -7/Factory | Identified exit to Storage 3255 | -7/Factory | Lost 5 parts (1p2n2u) 3346 | -7/Factory | Entered Storage 3522 | -7/Storage | Lost 10 parts (2p3n3u2w) 4034 | -7/Storage | Discovered new exit (range 15) 4072 | -7/Storage | Identified exit to Factory 4073 | -7/Storage | Entered Factory 4073 | -6/Factory | Evolved 2 slots: Power x1, Utility x1 4442 | -6/Factory | Garrison activated, responded to threat 4483 | -6/Factory | Lost 4 parts (1p1n1u1w) 5204 | -6/Factory | Discovered new exit (range 12) 5255 | -6/Factory | Identified exit to Lower Caves 5257 | -6/Factory | Entered Lower Caves 5451 | -6/Lower Caves | Attacked by a delusional Derelict stockpiling parts 6664 | -6/Lower Caves | Discovered new exit (range 14) 6684 | -6/Lower Caves | Identified exit to Lower Caves 6685 | -6/Lower Caves | Entered another Lower Caves area 6705 | -6/Lower Caves | Encountered a Warlord checkpoint 7162 | -6/Lower Caves | Attacked by a delusional Derelict stockpiling Unaware 7181 | -6/Lower Caves | System corruption reached 10% 7217 | -6/Lower Caves | System corruption reached 30% 7633 | -6/Lower Caves | Identified exit to Data Miner 7754 | -6/Lower Caves | Entered Data Miner 7754 | -6/Data Miner | Discovered new exit (range 6) 7764 | -6/Data Miner | Identified exit to Proximity Caves 7790 | -6/Data Miner | Met Data Miner 7819 | -6/Data Miner | Learned location of Section 7 (-3) 7848 | -6/Data Miner | Received God Mode back door access code from Data Miner 7888 | -6/Data Miner | Entered Proximity Caves 8077 | -5/Proximity Caves | Spotted B-75 Beast 8123 | -5/Proximity Caves | Lost 8 parts (2p2n1u3w) 8322 | -5/Proximity Caves | Released all parts (4) 8351 | -5/Proximity Caves | Lost 5 parts (2n2u1w) 8369 | -5/Proximity Caves | Build established: Mutant 8394 | -5/Proximity Caves | Core integrity fell below 50% 8399 | -5/Proximity Caves | Escorted by Enhanced Grunt 8438 | -5/Proximity Caves | Core integrity fell below 20% 8448 | -5/Proximity Caves | Destroyed by P-70 Sage with High-powered Shock Rifle Last Messages --------------- 08320_ Arm. Treads destroyed. 08320_ Knocked back. 08322_ Released Adv. Signal Interpreter. 08322_ Released Imp. Sensor Array. 08322_ Released Imp. Cryofiber Web. 08322_ Released Mak. Heavy Armor Plating. 08322_ Acquired Mak. Heavy Armor Plating. 08327_ System corrupted: Heat flow error (+165). 08349_ WPVD8>IYZ&&B7JXFKBTU4LXNSIK%MGZ Map ----- +----------------------------------------------------+ | | | | | | | | | | | | | ??????????????????????????????????????????? | | ??????????????????????????????????????????? | | ??????????????????????????????????????????? | | ??????????????????????????????????????????? | | ??????????????????????????????????????????? | | ??????????????????????????????????????????? | | ??????????????????????????????????????????? | | ??????????????????????????????????????????? | | ??????????????????????????????????????????? | | ??????????????????????????????????????????? | | ??????????????????????????????????????????? | | ??????????????????????????????????????????? | | ??????????????????????????????????????????? | | ??????????????????????????????????????????? | | ??????????????????#########???????????????? | | ??????????????????# ##??????????????? | | ??????????? ###### ???????????????? | | ?????????? ???????????????? | | ??????????? #???????????????? | | ??????????????????# @#???????????????? | | ???????????? ??#??# #???????????????? | | ??????????? ## ?# ##???????????????? | | ???????????# ## ##???????????????? | | ?????###???# #???????????????? | | ???### #?# #???????????????? | | ??## #??# #???????????????? | | ?## ##?## #???????????????? | | ## ##?# #???????????????? | | #?# ### #???????????????? | | #? ???## ##???????????????? | | #?? ????## ##????????????????? | | ##?##?????# ##?????????????????? | | ###???####gp ##?????????????????? | | ##?## ## ##????????????????? | | ### #????????????????? | | ## ## ##???????????????? | | ## ### #???????????????? | | ## ### ##???????????????? | | #### ### ##?## #????????????????? | | #??## ##### #???## ###??????????????? | | #???######?## #???## #??????????????? | | ####???????# ##?## ##??????????????? | | #???????## ### #???????????????? | | ##????????## ## #???????????????? | +----------------------------------------------------+ Best States ------------- Heat Dissipation 97 Energy Generation 32 Energy Capacity 525 Matter Stores 300 Matter Capacity 300 Sight Range 21 Robot Scan Range 15 Terrain Scan Density 10 ECM Strength 2 Jamming Range 12 Base Temperature (-) 150 Armor Coverage 400 Weapon Cycling 15 Evasion (%) 72 Target Analysis 5 Core Analysis 6 Recoil Reduction 4 Offensive Hacking 10 Defensive Hacking 11 Item Schematics ----------------- Combat Drone Bay | -6/Data Miner | Free Lgt. Regenerative Plating | -6/Data Miner | Free Cld. Nuclear Pulse Thruster | -6/Data Miner | Free Imp. Matter Compressor | -6/Data Miner | Free Hvy. Proton Cannon | -6/Data Miner | Free Imp. Gyrokinetic Inverter | -6/Data Miner | Free Imp. Point Defense System | -6/Data Miner | Free HERF Cannon | -6/Data Miner | Free Antigrav System | -6/Data Miner | Free Lgt. Antimatter Reactor | -6/Data Miner | Free Matter Neutralizer | -6/Data Miner | Free Impulse Thruster Array | -6/Data Miner | Free Nova Cannon | -6/Data Miner | Free Robot Schematics ------------------ S-27 Virus | -6/Data Miner | Free L-41 Fighter | -6/Data Miner | Free D-63 Destroyer | -6/Data Miner | Free Fabricated ------------ Nothing Repaired ---------- Nothing Studied --------- None Alien Tech Used ----------------- None Achievements -------------- Fitting Room Resistances Are Futile Challenges ------------ None Game ------ Seed QuantumSurveybotMaul Manual? 0 Play Time 01:11:25 Cumulative 42.9 hours Start 2025.12.21 @ 05:36:04 End 2025.12.21 @ 06:44:43 Sessions 1 Manual Loads 0 Difficulty Rogue Special Mode None Game No. 34 Rogue 32 Adventurer 2 Explorer 0 Win Type - Total 1 Types 0/0/0/1/0/0/0/0/0/0 Lore% 31 Gallery% 49 Achievement% 41 Wizard Run 0 Options --------- Layout 2 ASCII 0 Keyboard 1 Movement Numpad Keybinds 0 Fullscreen 1 Font 32/SmallcapsGlow Map View 50x49 Zoom Use 0% Tactical HUD 1 Map Filters NONE Filters NONE Steam 0 RUN: a6b50841-b709-4f24-88d5-ba8b5b8f1e73